fUSD/lending_fUSD_20240418
["ID","MTS","AMOUNT","RATE_DAILY","PERIOD"]
[322850102,1713409840253,-150.0,0.0002033,4]
[322850103,1713409840262,-153.89458227,0.00020347,2]
[322850104,1713409840271,-336.1982944,0.0002035,4]
[322850105,1713409840281,-150.0,0.00020364,4]
[322850106,1713409840290,-336.1982944,0.00020372,4]
[322850107,1713409840299,-336.1982944,0.00020393,4]
[322850108,1713409840309,-244.51487359,0.00020394,2]
[322850109,1713409840319,-150.0,0.00020403,4]
[322850110,1713409840328,-150.0,0.00020403,4]
[322850111,1713409840337,-450.15260408,0.00020413,2]
[322850112,1713409840346,-4127.71236854,0.00020413,2]
[322850113,1713409840355,-336.1982944,0.00020414,4]
[322850114,1713409840365,-649.85991741,0.00020418,2]
[322850115,1713409840377,-150.0,0.00020434,4]
[322850116,1713409840386,-336.1982944,0.00020435,4]
[322850117,1713409840396,-150.0,0.00020442,4]
[322850118,1713409840408,-336.1982944,0.00020456,4]
[322850119,1713409840418,-244.51487359,0.00020461,2]
[322850120,1713409840427,-150.0,0.00020462,4]
[322850121,1713409840436,-336.1982944,0.00020478,4]
[322850122,1713409840446,-150.0,0.00020481,4]
[322850123,1713409840455,-336.1982944,0.00020499,4]
[322850124,1713409840465,-150.0,0.000205,2]
[322850125,1713409840475,-336.1982944,0.0002052,4]
[322850126,1713409840485,-150.0,0.0002052,4]
[322850127,1713409840495,-150.0,0.0002052,4]
[322850128,1713409840505,-450.15260408,0.00020535,2]
[322850129,1713409840514,-4127.71236854,0.00020535,2]
[322850130,1713409840524,-336.1982944,0.00020541,4]
[322850131,1713409840533,-94.61402309,0.00020544,4]
[322850132,1713409840550,-55.38597691,0.00020544,4]
[322850133,1713409840559,-150.0,0.00020559,4]
[322850134,1713409840569,-336.1982944,0.00020562,4]
[322850135,1713409840579,-150.0,0.00020567,4]
[322850136,1713409840588,-153.55208797,0.00020579,2]
[322850137,1713409840597,-104.86364072,0.00020584,4]
[322850138,1713409840666,-231.33465368,0.00020584,4]
[322850139,1713409840675,-150.0,0.00020593,4]
[322850140,1713409840685,-953.23988846,0.00020597,2]
[322850141,1713409840697,-4870.67020194,0.00020597,2]
[322850142,1713409840707,-151.07534981,0.00020597,2]
[322850143,1713409840717,-150.0,0.00020598,4]
[322850144,1713409840726,-649.85991741,0.00020598,2]
[322850145,1713409840736,-336.1982944,0.00020605,4]
[322850146,1713409840745,-604.55656822,0.00020605,2]
[322850147,1713409840755,-1000.0,0.00020615,2]
[322850148,1713409840765,-604.55656822,0.00020617,2]
[322850149,1713409840774,-336.1982944,0.00020626,4]
[322850150,1713409840783,-150.0,0.00020637,4]
[322850151,1713409840793,-150.0,0.00020637,4]
[322850152,1713409840802,-336.1982944,0.00020647,4]
[322850153,1713409840812,-150.0,0.00020655,4]
[322850154,1713409840822,-450.15260408,0.00020657,2]
[322850155,1713409840832,-4127.71236854,0.00020657,2]
[322850156,1713409840842,-336.1982944,0.00020668,4]
[322850157,1713409840851,-150.0,0.00020675,4]
[322850158,1713409840860,-153.74,0.00020676,2]
[322850159,1713409840872,-161.78899841,0.00020676,2]
[322850160,1713409840882,-336.1982944,0.0002069,4]
[322850161,1713409840892,-336.1982944,0.00020711,4]
[322850162,1713409840901,-604.55656822,0.00020712,2]
[322850163,1713409840910,-150.0,0.00020714,4]
[322850164,1713409840921,-164.92322372,0.00020717,2]
[322850165,1713409840930,-153.89458227,0.0002072,2]
[322850166,1713409840940,-150.0,0.00020724,4]
[322850167,1713409840949,-150.0,0.00020727,2]
[322850168,1713409840959,-150.0,0.00020729,2]
[322850169,1713409840969,-150.0,0.00020729,2]
[322850170,1713409840979,-150.0,0.00020729,2]
[322850171,1713409840988,-336.1982944,0.00020732,4]
[322850172,1713409840997,-150.0,0.00020738,2]
[322850173,1713409841007,-150.0,0.00020741,2]
[322850174,1713409841017,-150.0,0.00020744,2]
[322850175,1713409841026,-150.0,0.00020748,2]
[322850176,1713409841036,-336.1982944,0.00020753,4]
[322850177,1713409841045,-150.0,0.00020753,4]
[322850178,1713409841055,-150.0,0.00020753,4]
[322850179,1713409841065,-618.77581813,0.00020756,2]
[322850180,1713409841074,-150.0,0.00020757,2]
[322850181,1713409841084,-150.0,0.00020757,2]
[322850182,1713409841094,-150.0,0.00020765,4]
[322850183,1713409841104,-150.0,0.0002077,2]
[322850184,1713409841114,-150.0,0.00020771,2]
[322850185,1713409841127,-150.0,0.00020771,2]
[322850186,1713409841136,-336.1982944,0.00020774,4]
[322850187,1713409841148,-150.0,0.00020775,2]
[322850188,1713409841158,-150.0,0.00020778,2]
[322850189,1713409841168,-450.15260408,0.00020778,2]
[322850190,1713409841178,-4127.71236854,0.00020778,2]
[322850191,1713409841188,-150.0,0.00020779,2]
[322850192,1713409841198,-150.0,0.00020781,2]
[322850193,1713409841207,-150.0,0.00020785,2]
[322850194,1713409841217,-150.0,0.00020786,2]
[322850195,1713409841226,-150.0,0.00020787,2]
[322850196,1713409841236,-320.18403142,0.00020788,2]
[322850197,1713409841245,-150.0,0.0002079,2]
[322850198,1713409841255,-150.0,0.00020792,4]
[322850199,1713409841264,-150.0,0.00020794,2]
[322850200,1713409841273,-336.1982944,0.00020796,4]
[322850201,1713409841283,-150.0,0.00020796,2]
[322850202,1713409841292,-618.77581813,0.00020798,2]
[322850203,1713409841302,-1000.0,0.000208,2]
[322850204,1713409841311,-150.0,0.00020807,2]
[322850205,1713409841321,-150.0,0.00020812,2]
[322850206,1713409841331,-150.0,0.00020814,2]
[322850207,1713409841341,-336.1982944,0.00020817,4]
[322850208,1713409841350,-150.0,0.00020831,4]
[322850209,1713409841360,-383.365945,0.00020832,2]
[322850210,1713409841370,-500.0,0.00020832,2]
[322850211,1713409841384,-150.0,0.00020836,2]
[322850212,1713409841394,-152.6872418,0.00020836,2]
[322850213,1713409841405,-336.1982944,0.00020838,4]
[322850214,1713409841415,-150.0,0.00020838,2]
[322850215,1713409841425,-150.0,0.00020842,2]
[322850216,1713409841435,-150.0,0.00020851,2]
[322850217,1713409841449,-150.0,0.00020852,2]
[322850218,1713409841459,-150.0,0.00020853,2]
[322850219,1713409841469,-150.0,0.00020855,4]
[322850220,1713409841480,-336.1982944,0.00020859,4]
[322850221,1713409841489,-150.0,0.00020861,2]
[322850222,1713409841500,-150.0,0.00020861,2]
[322850223,1713409841510,-150.0,0.00020862,2]
[322850224,1713409841520,-150.0,0.00020865,2]
[322850225,1713409841530,-154.25673102,0.00020867,2]
[322850226,1713409841539,-288.7409379,0.00020868,2]
[322850227,1713409841549,-150.0,0.0002087,4]
[322850228,1713409841559,-150.0,0.0002087,4]
[322850229,1713409841569,-150.0,0.00020872,2]
[322850230,1713409841579,-150.0,0.00020873,2]
[322850231,1713409841589,-150.0,0.00020876,4]
[322850232,1713409841599,-150.0,0.00020877,2]
[322850233,1713409841609,-336.1982944,0.0002088,4]
[322850234,1713409841619,-150.0,0.00020883,2]
[322850235,1713409841631,-150.0,0.00020884,2]
[322850236,1713409841641,-150.0,0.00020889,2]
[322850237,1713409841650,-150.0,0.00020895,2]
[322850238,1713409841660,-1350.31840184,0.00020898,2]
[322850239,1713409841670,-183.72940573,0.00020898,2]
[322850240,1713409841679,-157.18489306,0.00020898,2]
[322850241,1713409841688,-1000.0,0.00020898,2]
[322850242,1713409841698,-100000.0,0.00020898,2]
[322850243,1713409841707,-467.8579,0.00020898,2]
[322850244,1713409841717,-1350.31840182,0.00020898,2]
[322850245,1713409841726,-1350.31840182,0.00020898,2]
[322850246,1713409841735,-1350.31840182,0.00020899,2]
[322850247,1713409841745,-1350.31840182,0.00020899,2]
[322850248,1713409841754,-1350.31840182,0.00020899,2]
[322850249,1713409841763,-1350.31840182,0.00020899,2]
[322850250,1713409841772,-1350.31840182,0.00020899,2]
[322850251,1713409841782,-1350.31840182,0.00020899,2]
[322850252,1713409841791,-1350.31840182,0.000209,2]
[322850253,1713409841800,-1350.31840182,0.000209,2]
[322850254,1713409841809,-1350.31840182,0.000209,2]
[322850255,1713409841818,-4060.0244,0.000209,2]
[322850256,1713409841828,-450.15260408,0.000209,2]
[322850257,1713409841837,-4127.71236854,0.000209,2]
[322850258,1713409841846,-336.1982944,0.00020902,4]
[322850259,1713409841856,-150.0,0.00020906,2]
[322850260,1713409841865,-150.0,0.00020909,4]
[322850261,1713409841878,-150.0,0.0002091,2]
[322850262,1713409841887,-244.51487359,0.00020916,2]
[322850263,1713409841897,-288.7409379,0.00020921,2]
[322850264,1713409841907,-336.1982944,0.00020923,4]
[322850265,1713409841916,-150.0,0.00020924,2]
[322850266,1713409841926,-150.0,0.00020931,2]
[322850267,1713409841935,-150.0,0.00020931,2]
[322850268,1713409841946,-150.0,0.00020932,2]
[322850269,1713409841955,-150.0,0.00020936,2]
[322850270,1713409841965,-150.0,0.00020936,2]
[322850271,1713409841974,-336.1982944,0.00020944,4]
[322850272,1713409841984,-150.0,0.00020946,2]
[322850273,1713409841993,-150.0,0.00020946,2]
[322850274,1713409842002,-150.0,0.00020947,4]
[322850275,1713409842011,-150.0,0.0002095,2]
[322850276,1713409842021,-150.0,0.00020954,2]
[322850277,1713409842030,-336.1982944,0.00020965,4]
[322850278,1713409842040,-150.0,0.00020972,2]
[322850279,1713409842049,-150.0,0.00020975,2]
[322850280,1713409842059,-150.0,0.00020975,2]
[322850281,1713409842068,-150.0,0.00020975,2]
[322850282,1713409842078,-150.0,0.00020978,2]
[322850283,1713409842087,-2220.36372991,0.00020979,2]
[322850284,1713409842096,-150.0,0.00020981,2]
[322850285,1713409842105,-150.0,0.00020986,2]
[322850286,1713409842115,-336.1982944,0.00020986,4]
[322850287,1713409842127,-211.26462991,0.00020986,4]
[322850288,1713409842137,-152.57495191,0.00020986,4]
[322850289,1713409842146,-152.16359318,0.00020986,4]
[322850290,1713409842155,-153.21044163,0.00020986,4]
[322850291,1713409842165,-151.90858164,0.00020986,4]
[322850292,1713409842175,-182.3308211,0.00020986,4]
[322850293,1713409842184,-169.96691952,0.00020986,4]
[322850294,1713409842194,-189.73845848,0.00020986,4]
[322850295,1713409842204,-171.42,0.00020988,2]
[322850296,1713409842213,-154.86,0.00020988,2]
[322850297,1713409842222,-150.0,0.00020989,2]
[322850298,1713409842232,-154.86,0.0002099,2]
[322850299,1713409842241,-150.0,0.0002099,2]
[322850300,1713409842251,-171.42,0.0002099,2]
[322850301,1713409842261,-171.42,0.0002099,2]
[322850302,1713409842270,-171.42,0.0002099,2]
[322850303,1713409842280,-171.42,0.0002099,2]
[322850304,1713409842289,-171.42,0.0002099,2]
[322850305,1713409842299,-171.42,0.0002099,2]
[322850306,1713409842308,-154.86,0.0002099,2]
[322850307,1713409842317,-150.0,0.00020993,2]
[322850308,1713409842327,-150.0,0.00020993,2]
[322850310,1713409842336,-150.0,0.00020994,2]
[322850311,1713409842346,-205.71775131,0.00020996,2]
[322850312,1713409842355,-156.75001336,0.00020997,2]
[322850313,1713409842365,-209.7287191,0.00020997,2]
[322850314,1713409842376,-797.22133656,0.00020997,2]
[322850315,1713409842385,-19470.48241811,0.00020997,2]
[322850326,1713409842605,-893.3431975,0.00020997,2]
[322850327,1713409842616,-175.5974352,0.00020997,2]
[322850328,1713409842626,-1482.2453755,0.00020997,2]
[322850329,1713409842635,-1305.5421069,0.00020997,2]
[322850330,1713409842644,-15829.6672261,0.00020997,2]
[322850331,1713409842653,-19588.7409469,0.00020997,2]
[322850332,1713409842663,-739.4500085,0.00020997,2]
[322850333,1713409842672,-2868.5558229,0.00020997,2]
[322850334,1713409842681,-157.58727445,0.00020998,2]
[322850335,1713409842691,-156.48816646,0.00020998,2]
[322850336,1713409842700,-2004.75142849,0.00020998,2]
[322850337,1713409842709,-4989.10649129,0.00020998,2]
[322850338,1713409842719,-156.27203128,0.00020998,2]
[322850339,1713409842729,-450979.13008917,0.00020998,2]
[322850340,1713409842761,-14253.01605069,0.00020998,2]
[322850349,1713409844480,-455.47245713,0.00020666,2]
[322850350,1713409846297,-1804.52754287,0.00020666,2]
[322850352,1713409846307,-785.72465795,0.00020771,2]
[322850353,1713409846317,-25975.13308957,0.00020998,2]
[322850354,1713409846326,-301.39225214,0.00020998,2]
[322850356,1713409846335,-348.69433068,0.00020998,2]
[322850358,1713409846345,-1879.15733311,0.00020998,2]
[322850379,1713409847124,-2958.69946175,0.00020998,2]
[322850380,1713409847135,-156.17015474,0.00020998,2]
[322850381,1713409847144,-155.58422074,0.00020998,2]
[322850382,1713409847154,-3787.28191786,0.00020998,2]
[322850383,1713409847162,-495.1414103,0.00020998,2]
[322850384,1713409847171,-179.6950058,0.00020998,2]
[322850385,1713409847181,-1068.16993351,0.00020998,2]
[322850386,1713409847190,-309.56313976,0.00020998,2]
[322850387,1713409847199,-157.40461354,0.00020998,2]
[322850388,1713409847209,-1889.87693162,0.00020998,2]
[322850389,1713409847219,-200.0,0.00020998,2]
[322850390,1713409847229,-240.32443789,0.00020998,2]
[322850391,1713409847242,-150.0,0.00020998,2]
[322850392,1713409847252,-301.08,0.00020998,2]
[322850393,1713409847261,-159.12,0.00020998,2]
[322850394,1713409847270,-150.0,0.00020998,2]
[322850395,1713409847279,-150.0,0.00020998,2]
[322850396,1713409847288,-159.58797889,0.00020999,2]
[322850397,1713409847297,-5557.90950773,0.00020999,2]
[322850398,1713409847306,-526.0,0.00020999,2]
[322850399,1713409847316,-747.44469015,0.00021,3]
[322850400,1713409847324,-228179.5692174,0.00021,2]
[322850401,1713409847646,-162.70006698,0.00020665,2]
[322850402,1713409847659,-6027.49993302,0.00021,2]
[322850436,1713411032003,-1627.63630475,0.00016423,2]
[322850437,1713411032014,-602.58454772,0.00016423,2]
[322850438,1713411032035,-531.04353924,0.00016423,2]
[322850439,1713411032120,-591.826501,0.00016423,2]
[322850440,1713411032134,-269.58883307,0.00016423,2]
[322850441,1713411032146,-421.94944597,0.00016423,2]
[322850442,1713411032189,-1498.26176242,0.00016423,2]
[322850443,1713411032199,-7370.23471714,0.00016424,2]
[322850447,1713411032226,-299.035488,0.00016424,2]
[322850448,1713411032258,-1007.15591784,0.00016424,2]
[322850449,1713411032307,-4260.95850333,0.00016424,2]
[322850456,1713411040307,-348.64959659,0.00016424,2]
[322850457,1713411040404,-3321.5829771,0.00016424,2]
[322850458,1713411040414,-1606.99457282,0.000169,2]
[322850459,1713411040424,-1550.0,0.00017,2]
[322850460,1713411040433,-50000.0,0.00017112,2]
[322850461,1713411040442,-153.83,0.00017112,2]
[322850462,1713411040452,-150.0,0.00018888,2]
[322850463,1713411040461,-150.0,0.00018948,2]
[322850464,1713411040471,-1600.0,0.00019,2]
[322850465,1713411040481,-150.0,0.00019008,2]
[322850466,1713411040489,-499.99,0.00019008,2]
[322850467,1713411040498,-556.35,0.0001903,2]
[322850468,1713411040507,-250.0,0.0001903,2]
[322850469,1713411040516,-186.36,0.00019057,2]
[322850470,1713411040525,-773.52,0.00019057,2]
[322850471,1713411040534,-7304.79,0.00019057,2]
[322850472,1713411040543,-150.0,0.00019068,2]
[322850473,1713411040552,-600.0,0.00019106,2]
[322850474,1713411040562,-150.0,0.00019128,2]
[322850475,1713411040571,-150.0,0.00019187,4]
[322850476,1713411040580,-150.0,0.00019247,4]
[322850477,1713411040589,-159.756848,0.00019307,2]
[322850478,1713411040598,-150.0,0.00019307,4]
[322850479,1713411040607,-515.64651511,0.00019314,2]
[322850480,1713411040616,-523.94902579,0.00019362,2]
[322850481,1713411040625,-150.0,0.00019367,4]
[322850482,1713411040634,-299.67940639,0.00019397,2]
[322850483,1713411040644,-554.03,0.0001941,2]
[322850484,1713411040654,-150.0,0.00019427,4]
[322850485,1713411040663,-167.07342182,0.00019443,2]
[322850486,1713411040673,-500.0,0.00019444,2]
[322850487,1713411040682,-3828.95,0.00019456,2]
[322850488,1713411040692,-6036.24,0.00019462,2]
[322850489,1713411040701,-150.0,0.00019487,4]
[322850490,1713411040712,-400.0,0.00019504,2]
[322850491,1713411040722,-1412.45,0.00019506,2]
[322850492,1713411040733,-150.0,0.00019547,4]
[322850493,1713411040744,-1059.21,0.00019557,2]
[322850494,1713411040756,-150.0,0.00019607,4]
[322850495,1713411040767,-150.0,0.00019667,4]
[322850496,1713411040777,-220.06338623,0.00019697,2]
[322850497,1713411040788,-150.0,0.00019727,4]
[322850498,1713411040800,-154.25673102,0.00019731,2]
[322850499,1713411040810,-150.0,0.00019787,4]
[322850500,1713411040821,-299.67940639,0.00019815,2]
[322850501,1713411040831,-150.0,0.00019847,4]
[322850502,1713411040841,-157.97842351,0.00019852,2]
[322850503,1713411040851,-462.85495809,0.00019868,2]
[322850504,1713411040860,-220.06338623,0.00019883,2]
[322850505,1713411040870,-159.023905,0.00019904,2]
[322850506,1713411040879,-150.0,0.00019907,4]
[322850507,1713411040888,-150.0,0.00019967,4]
[322850508,1713411040897,-523.94902579,0.00019972,2]
[322850509,1713411040907,-5000.0,0.0002,2]
[322850510,1713411040916,-814.0,0.0002,2]
[322850511,1713411040926,-506.0,0.0002,2]
[322850512,1713411040938,-150.0,0.00020027,4]
[322850513,1713411040948,-154.97857695,0.00020032,2]
[322850514,1713411040959,-168.15380474,0.00020046,2]
[322850515,1713411040970,-515.64651511,0.00020054,2]
[322850516,1713411040981,-150.0,0.00020087,4]
[322850517,1713411040991,-168.74,0.00020092,2]
[322850518,1713411041001,-1322.56224573,0.00020096,2]
[322850519,1713411041010,-515.64651511,0.00020102,2]
[322850520,1713411041020,-299.67940639,0.00020135,2]
[322850521,1713411041030,-150.0,0.00020147,4]
[322850522,1713411041039,-164.15412863,0.00020157,2]
[322850523,1713411041049,-1322.56224573,0.00020172,2]
[322850524,1713411041059,-153.55208797,0.00020176,2]
[322850525,1713411041070,-150.0,0.00020207,4]
[322850526,1713411041080,-515.64651511,0.0002023,2]
[322850527,1713411041090,-150.0,0.00020267,4]
[322850528,1713411041100,-150.0,0.00020327,4]
[322850529,1713411041110,-156.65021746,0.00020356,2]
[322850530,1713411041120,-164.92322372,0.00020383,2]
[322850531,1713411041129,-150.0,0.00020387,4]
[322850532,1713411041140,-1000.0,0.000204,2]
[322850533,1713411041149,-1200.0,0.0002041,2]
[322850534,1713411041158,-150.0,0.00020447,4]
[322850535,1713411041168,-150.10701406,0.00020455,2]
[322850536,1713411041178,-6000.0,0.00020463,7]
[322850537,1713411041187,-154.38864419,0.00020475,2]
[322850538,1713411041196,-150.0,0.000205,2]
[322850539,1713411041206,-150.0,0.00020507,4]
[322850540,1713411041215,-1322.56224573,0.00020535,2]
[322850541,1713411041225,-150.0,0.00020567,4]
[322850542,1713411041517,-150.0,0.00020572,2]
[322850543,1713411041542,-154.38864419,0.000206,2]
[322850544,1713411041551,-1322.56224573,0.00020604,2]
[322850545,1713411041561,-150.0,0.00020627,4]
[322850546,1713411041573,-159.023905,0.00020631,2]
[322850547,1713411041582,-166.66666666,0.00020643,2]
[322850548,1713411041591,-150.0,0.00020686,4]
[322850549,1713411041600,-168.15380474,0.0002069,2]
[322850550,1713411041610,-180.84025705,0.000207,4]
[322850551,1713411041619,-1577.97,0.00020712,2]
[322850552,1713411041628,-150.0,0.0002073,2]
[322850553,1713411041637,-1322.56224573,0.00020735,2]
[322850554,1713411041647,-150.0,0.00020746,4]
[322850555,1713411041656,-462.85495809,0.00020764,2]
[322850556,1713411041666,-150.0,0.00020775,2]
[322850557,1713411041675,-150.0,0.00020781,2]
[322850558,1713411041684,-1000.0,0.000208,2]
[322850559,1713411041694,-150.0,0.00020804,2]
[322850560,1713411041703,-150.0,0.00020806,4]
[322850561,1713411041712,-150.0,0.00020825,2]
[322850562,1713411041721,-1000.0,0.00020832,2]
[322850563,1713411041730,-200.0,0.00020832,2]
[322850564,1713411041741,-500.0,0.00020832,2]
[322850565,1713411041750,-150.0,0.00020834,2]
[322850566,1713411041760,-150.0,0.00020836,2]
[322850567,1713411041769,-151.08,0.00020851,2]
[322850568,1713411041779,-150.0,0.00020866,4]
[322850569,1713411041788,-1000.0,0.00020875,2]
[322850570,1713411041797,-177.36472749,0.00020889,2]
[322850571,1713411041807,-29390.2622,0.00020898,2]
[322850572,1713411041818,-361.3607,0.00020899,2]
[322850573,1713411041827,-951.0596,0.00020899,2]
[322850574,1713411041836,-16668.07214731,0.000209,2]
[322850575,1713411041847,-177.36472749,0.000209,2]
[322850576,1713411041856,-150.0,0.00020904,2]
[322850577,1713411041867,-150.0,0.00020911,2]
[322850578,1713411041877,-168.15380474,0.00020919,2]
[322850579,1713411041886,-220.06338623,0.00020922,2]
[322850580,1713411041897,-150.0,0.00020926,4]
[322850581,1713411041906,-150.0,0.00020927,2]
[322850582,1713411041915,-150.0,0.00020956,2]
[322850583,1713411041925,-260.04041513,0.00020967,2]
[322850584,1713411041934,-150.0,0.0002097,2]
[322850585,1713411041943,-150.0,0.00020984,2]
[322850586,1713411041952,-263.58420605,0.00020986,4]
[322850587,1713411041962,-378.90549971,0.00020988,2]
[322850588,1713411041971,-150.0,0.00020989,2]
[322850589,1713411041980,-403.82541444,0.00020996,3]
[322850590,1713411041989,-1826.3216741,0.00020997,2]
[322850591,1713411041999,-8097.6969565,0.00020997,2]
[322850592,1713411042008,-38269.2120804,0.00020997,2]
[322850593,1713411042018,-507.8214985,0.00020997,2]
[322850594,1713411042027,-5364.1227085,0.00020997,2]
[322850595,1713411042036,-7370.1912175,0.00020997,2]
[322850596,1713411042046,-666.89185531,0.00020997,2]
[322850597,1713411042055,-425.2717742,0.00020998,2]
[322850598,1713411042064,-1058.73762572,0.00020998,2]
[322850599,1713411042074,-1011.32537973,0.00020998,2]
[322850600,1713411042083,-11492.07605647,0.00020998,2]
[322850601,1713411042201,-150.0,0.00020846,2]
[322850602,1713411042210,-150.0,0.00020871,2]
[322850603,1713411042219,-703.71389338,0.00020998,2]
[322850649,1713411045422,-150.0,0.00020736,2]
[322850650,1713411045432,-150.0,0.00020764,2]
[322850651,1713411045441,-150.0,0.00020776,2]
[322850652,1713411045450,-31.743,0.00020793,2]
[322850653,1713411045462,-118.257,0.00020793,2]
[322850654,1713411045471,-150.0,0.00020912,2]
[322850655,1713411045481,-858.18268259,0.00020998,2]
[322850656,1713411045493,-37396.53566714,0.00020998,2]
[322850657,1713411045502,-1177.81516436,0.00020998,2]
[322850658,1713411045511,-757.18886109,0.00020998,2]
[322850659,1713411045520,-155.99840597,0.00020998,2]
[322850660,1713411045530,-156.15127729,0.00020998,2]
[322850661,1713411045539,-185.15599964,0.00020998,2]
[322850662,1713411045548,-1034.39750078,0.00020998,2]
[322850663,1713411045557,-2184.37129362,0.00020999,2]
[322850664,1713411045567,-67230.50256791,0.00020999,2]
[322850666,1713411045577,-672.70022114,0.00021,3]
[322850668,1713411045586,-189.66125785,0.00021,2]
[322850669,1713411045595,-102664.8264112,0.00021,2]
[322850670,1713411047422,-1795.36741921,0.00021,2]
[322850671,1713411047462,-727.95,0.00021,2]
[322850672,1713411078852,151.0,0.00026346,120]
[322850688,1713411783442,151.0,0.00024902,120]
[322850694,1713412232159,-1550.0,0.00017,2]
[322850695,1713412232170,-153.83,0.00017746,2]
[322850696,1713412232180,-150.0,0.00018888,2]
[322850697,1713412232189,-1074.92619804,0.00019,2]
[322850698,1713412232278,-525.07380196,0.00019,2]
[322850699,1713412232288,-150.0,0.00019214,2]
[322850700,1713412232297,-19355.26,0.00019215,2]
[322850701,1713412232306,-151.33842427,0.00019307,2]
[322850702,1713412232316,-198.05704761,0.00019331,2]
[322850703,1713412232325,-154.38864419,0.00019348,2]
[322850704,1713412232334,-154.38864419,0.00019355,2]
[322850705,1713412232343,-999.99,0.00019357,2]
[322850706,1713412232353,-499.99,0.00019357,2]
[322850707,1713412232362,-1102.13520478,0.00019367,2]
[322850708,1713412232372,-250.24214618,0.00019415,2]
[322850709,1713412232381,-154.38864419,0.00019429,2]
[322850710,1713412232391,-152.6872418,0.00019464,2]
[322850711,1713412232400,-446.89364643,0.00019492,2]
[322850712,1713412232410,-164.92322372,0.00019534,2]
[322850713,1713412232419,-150.99,0.0001955,2]
[322850714,1713412232428,-923.13,0.0001955,2]
[322850715,1713412232438,-150.10701406,0.0001958,2]
[322850716,1713412232446,-269.71146575,0.00019598,2]
[322850717,1713412232455,-157.97842351,0.0001961,2]
[322850718,1713412232464,-1950.68,0.00019613,2]
[322850719,1713412232473,-520.0,0.00019619,2]
[322850720,1713412232483,-785.61,0.00019619,2]
[322850721,1713412232492,-186.36,0.00019643,2]
[322850722,1713412232503,-480.0,0.00019664,2]
[322850723,1713412232512,-153.89458227,0.00019666,2]
[322850724,1713412232522,-568.40855705,0.00019694,2]
[322850725,1713412232531,-515.0,0.000197,2]
[322850726,1713412232540,-150.10701406,0.0001975,2]
[322850727,1713412232548,-198.05704761,0.00019757,2]
[322850728,1713412232558,-99.0636279,0.00019759,2]
[322850729,1713412232569,-55.91494905,0.00019759,2]
[322850730,1713412232578,-153.55208797,0.00019771,2]
[322850731,1713412232587,-154.84000074,0.00019784,2]
[322850732,1713412232596,-198.05704761,0.00019805,2]
[322850733,1713412232605,-156.72601488,0.00019857,2]
[322850734,1713412232614,-164.92322372,0.00019867,2]
[322850735,1713412232623,-568.40855705,0.0001987,2]
[322850736,1713412232632,-166.84086597,0.00019886,2]
[322850737,1713412232642,-156.72601488,0.00019887,2]
[322850738,1713412232651,-150.10701406,0.00019914,2]
[322850739,1713412232660,-150.0,0.00019937,4]
[322850740,1713412232669,-325.04103864,0.00019938,2]
[322850741,1713412232724,-438.97877864,0.00019938,2]
[322850742,1713412232736,-338.1153875,0.00019938,2]
[322850743,1713412232745,-67.09210151,0.00019967,2]
[322850744,1713412232758,-202.61936424,0.00019967,2]
[322850745,1713412232769,-141.50689416,0.0002,2]
[322850746,1713412232781,-3150.0,0.0002,2]
[322850747,1713412232793,-1708.49310584,0.0002,2]
[322850748,1713412232803,-157.97842351,0.00020001,2]
[322850749,1713412232812,-154.25673102,0.00020019,2]
[322850750,1713412232822,-157.97842351,0.00020075,2]
[322850751,1713412232831,-151.33842427,0.00020103,2]
[322850752,1713412232840,-157.97842351,0.00020178,2]